bitfinex/quotes_ETHUSD_20220201
["timestamp","ask_amount","ask_price","bid_price","bid_amount"]
[1643733391054,0.67129222,2795.1,2794.2,0.01206095]
[1643733391055,1.50924283,2794.4,2794.2,0.01206095]
[1643733391254,0.40844488,2794.7,2794.2,0.01206095]
[1643733391456,1.50922135,2794.6,2794.2,0.01206095]
[1643733391656,0.67129222,2795.2,2794.0,0.94999999]
[1643733391854,0.95440992,2794.5,2794.0,2.73937999]
[1643733392056,0.95440992,2794.5,2794.0,1.78938]
[1643733392454,1.50924849,2794.4,2794.0,1.78938]
[1643733392888,1.50924849,2794.4,2794.0,2.68408]
[1643733393086,0.67129222,2795.2,2794.1,0.94999999]
[1643733393286,0.97129222,2795.2,2794.0,2.68408]
[1643733393489,1.50918265,2795.1,2794.4,0.94999999]
[1643733393685,1.50918265,2795.1,2794.1,1.7893015]
[1643733393987,0.35108642,2795.0,2794.2,0.94999999]
[1643733394185,1.50918265,2794.9,2794.1,1.7893015]
[1643733394386,1.50918265,2794.9,2794.4,0.94999999]
[1643733394587,1.50918265,2794.9,2794.1,1.84465999]
[1643733394888,1.50918265,2794.9,2793.9,3.7396]
[1643733395090,1.50918265,2794.8,2793.8,1.2237]
[1643733395292,2.02518265,2794.8,2793.8,1.2237]
[1643733395488,1.50918265,2794.7,2793.8,1.2237]
[1643733395689,0.516,2794.6,2793.8,1.2237]
[1643733395888,0.86689171,2794.0,2793.8,1.2237]
[1643733396092,0.86689171,2794.0,2793.4,9.04939999]
[1643733396291,1.50944379,2793.9,2793.4,1.7898]
[1643733396536,1.50944379,2793.9,2793.0,0.89509]
[1643733396730,1.50944379,2793.9,2792.9,1.1515]
[1643733397132,0.73967822,2793.5,2792.9,1.52035511]
[1643733397331,0.73967822,2793.5,2792.9,1.1515]
[1643733397530,1.03967822,2793.5,2792.9,1.1515]
[1643733397731,0.73967822,2793.5,2792.9,1.1515]
[1643733397931,1.5096477,2793.4,2792.9,1.1515]
[1643733398431,1.5096477,2793.4,2792.4,0.1289]
[1643733398432,0.43088649,2793.2,2792.4,0.1289]
[1643733398635,1.5096477,2793.1,2792.4,0.1289]
[1643733399232,0.35016302,2792.5,2792.4,0.1289]
[1643733399432,0.516,2792.7,2792.4,0.1289]
[1643733399632,7.36199222,2793.5,2792.6,0.94999999]
[1643733399634,0.516,2793.0,2792.6,0.94999999]
[1643733399832,0.67129222,2793.9,2792.9,0.94999999]
[1643733400033,1.50985742,2793.8,2792.7,0.01235898]
[1643733400275,1.50985742,2793.7,2793.2,0.94999999]
[1643733400478,0.67129222,2794.4,2793.2,1.31710324]
[1643733400677,0.25,2794.8,2793.5,0.94999999]
[1643733400678,1.5096396,2794.3,2793.5,0.94999999]
[1643733400877,0.67129222,2794.6,2793.5,0.94999999]
[1643733400878,1.5096396,2794.2,2793.5,0.94999999]
[1643733401075,1.5096396,2794.1,2793.5,0.94999999]
[1643733401282,1.5096396,2794.0,2793.5,0.94999999]
[1643733401477,0.67129222,2794.6,2793.7,0.32466151]
[1643733401478,1.5096396,2793.9,2793.7,0.32466151]
[1643733401682,1.44201575,2794.6,2793.7,0.32466151]
[1643733401882,1.44201575,2794.6,2793.7,0.94999999]
[1643733401883,1.50949091,2794.5,2793.7,0.94999999]
[1643733402082,1.50949091,2794.5,2793.4,0.01206106]
[1643733402284,1.50949091,2794.5,2793.0,7.5973]
[1643733402481,2.18078313,2794.5,2793.2,0.94999999]
[1643733402681,3.48078313,2794.5,2793.2,0.94999999]
[1643733402881,3.48078313,2794.5,2794.0,0.94999999]
[1643733402882,1.50949091,2794.4,2794.0,0.94999999]
[1643733403083,1.50949091,2794.4,2793.7,0.4337764]
[1643733403282,1.50949091,2794.3,2794.0,0.94999999]
[1643733403483,1.50949091,2794.2,2794.0,0.94999999]
[1643733403683,0.77072353,2794.6,2793.5,1.159]
[1643733403684,2.72792794,2794.5,2793.5,1.159]
[1643733403892,1.50935905,2794.4,2793.6,0.94999999]
[1643733404340,0.82723525,2793.9,2793.6,0.94999999]
[1643733404641,1.50935905,2793.8,2792.8,0.0126034]
[1643733404841,1.80935905,2793.8,2792.6,1.1974]
[1643733405040,1.50935905,2793.7,2792.6,1.1974]
[1643733405241,2.80935905,2793.7,2792.6,1.1974]
[1643733405439,0.85314621,2793.1,2792.6,1.5413605]
[1643733405639,0.85314621,2793.1,2792.5,6.00169999]
[1643733405640,0.85314621,2793.1,2792.5,1.147]
[1643733405842,1.45314621,2793.1,2792.5,1.147]
[1643733406041,1.50993292,2793.0,2792.4,0.1289]
[1643733406242,0.516,2792.9,2792.4,0.1289]
[1643733406644,0.516,2792.9,2792.6,0.94999999]
[1643733406844,0.516,2792.9,2792.4,0.1289]
[1643733407245,0.85314621,2793.1,2792.4,0.1289]
[1643733407447,0.91597297,2792.6,2792.4,0.1289]
[1643733407875,1.21597297,2792.6,2792.4,0.1289]
[1643733408575,1.62451012,2792.6,2792.4,0.1289]
[1643733409176,1.21597297,2792.6,2792.4,0.1289]
[1643733409777,6.65,2792.5,2791.5,0.15024382]
[1643733409980,6.65,2792.5,2790.8,0.00226743]
[1643733409981,6.65,2792.5,2791.3,4.8197474]
[1643733409982,0.516,2792.4,2791.3,4.8197474]
[1643733410180,0.516,2792.4,2791.3,1.0987474]
[1643733410181,0.370892,2792.2,2791.3,1.0987474]
[1643733410476,0.516,2792.1,2791.3,1.0987474]
[1643733410676,0.9452513,2791.7,2791.3,1.0987474]
[1643733410977,0.516,2792.1,2791.3,1.0987474]
[1643733411177,0.3,2792.4,2791.3,1.0987474]
[1643733411178,0.816,2792.4,2791.5,0.94999999]
[1643733411378,0.816,2792.4,2791.6,0.94999999]
[1643733411645,0.816,2792.4,2792.1,0.94999999]
[1643733411942,1.22176697,2792.4,2792.1,0.94999999]
[1643733412345,1.22176697,2792.4,2791.7,1.84547999]
[1643733412843,1.22176697,2792.4,2791.3,1.0987474]
[1643733413243,0.25,2793.2,2791.7,0.4023918]
[1643733413544,0.25,2793.2,2792.0,0.0121908]
[1643733413545,1.51014397,2793.1,2792.0,0.0121908]
[1643733413742,1.81014397,2793.1,2792.0,0.0121908]
[1643733413943,1.51014397,2793.0,2792.0,0.0121908]
[1643733414146,1.51014397,2793.0,2791.8,0.94999999]
[1643733414344,0.87701302,2792.3,2791.8,0.94999999]
[1643733414746,1.55,2793.1,2791.7,1.2978618]
[1643733414947,0.3,2793.1,2792.4,0.94999999]
[1643733415579,1.68,2793.5,2792.4,0.94999999]
[1643733415580,0.77333358,2792.6,2792.4,0.94999999]
[1643733415981,0.77333358,2792.6,2791.9,0.94999999]
[1643733415982,1.07333358,2792.6,2791.9,0.94999999]
[1643733416880,0.41176483,2792.5,2791.7,0.94999999]
[1643733417283,0.41176483,2792.5,2791.6,1.2084]
[1643733417483,0.71176483,2792.5,2791.6,1.2084]
[1643733417681,0.71176483,2792.5,2791.7,0.94999999]
[1643733417881,0.83566328,2791.9,2791.6,1.2084]
[1643733418081,0.71176483,2792.5,2791.6,1.2084]
[1643733418282,0.71176483,2792.5,2791.7,0.94999999]
[1643733419350,0.71176483,2792.5,2791.3,1.0987474]
[1643733419351,0.87934287,2791.8,2791.3,1.0987474]
[1643733419745,1.17934287,2791.8,2791.3,1.0987474]
[1643733420246,0.87934287,2791.8,2791.3,1.0987474]
[1643733420445,0.87934287,2791.8,2791.3,2.04874739]
[1643733420648,0.87934287,2791.8,2791.3,1.0987474]
[1643733421246,0.87934287,2791.8,2791.4,0.94999999]
[1643733421747,0.87934287,2791.8,2791.3,1.0987474]
[1643733422546,1.17934287,2791.8,2791.3,1.0987474]
[1643733423383,5.45118288,2791.4,2791.3,1.0987474]
[1643733423580,5.05,2791.4,2791.3,1.0987474]
[1643733423782,5.35,2791.4,2791.3,1.0987474]
[1643733424285,5.35,2791.4,2790.3,0.94999999]
[1643733424286,6.65671219,2791.3,2790.3,0.94999999]
[1643733424485,6.65671219,2791.3,2789.8,0.94999999]
[1643733424486,0.43,2791.2,2789.8,0.94999999]
[1643733424683,21.08,2791.1,2789.8,1.33784099]
[1643733424884,1.43,2791.0,2789.8,1.33784099]
[1643733425081,0.76633463,2790.6,2789.8,1.33784099]
[1643733425482,3.04092353,2790.5,2789.8,1.33784099]
[1643733425681,4.5,2790.4,2789.5,7.6319]
[1643733425885,4.5,2790.4,2789.7,0.38015744]
[1643733426081,4.5,2790.4,2789.5,7.6319]
[1643733426283,0.91634598,2790.0,2789.5,7.6319]
[1643733426528,1.21634598,2790.0,2789.5,6.4716]
[1643733426730,2.90513174,2789.9,2789.4,1.1844]
[1643733426930,2.90513174,2789.9,2789.0,8.22563635]
[1643733426931,3.15513174,2789.9,2789.0,8.22563635]
[1643733427133,3.15513174,2789.9,2788.8,6.0819]
[1643733427134,3.3760693,2789.9,2788.8,6.0819]
[1643733427344,1.0,2789.8,2788.8,6.0819]
[1643733427533,1.0,2789.8,2788.6,1.1842]
[1643733427534,4.327,2788.7,2788.6,1.1842]
[1643733427730,1.077,2788.7,2788.1,6.6527]
[1643733427931,1.077,2788.6,2788.0,1.1138453]
[1643733428132,1.077,2788.6,2788.0,1.11157787]
[1643733428333,1.077,2788.6,2788.0,1.06157787]
[1643733428732,0.25,2788.7,2788.0,1.06157787]
[1643733428733,1.077,2788.2,2788.0,1.0487474]
[1643733428934,0.25,2788.7,2788.0,1.0487474]
[1643733428935,1.077,2788.1,2788.0,1.0487474]
[1643733430046,1.02936045,2789.5,2788.0,1.0487474]
[1643733430047,0.43,2789.2,2788.1,5.70985174]
[1643733430283,0.73,2789.9,2789.0,0.01287577]
[1643733430480,0.73,2789.9,2788.4,0.01226175]
[1643733430880,3.09808258,2789.8,2788.4,0.01226175]
[1643733431083,0.76331415,2789.2,2788.4,0.01226175]
[1643733431282,3.09808258,2789.8,2788.4,0.01226175]
[1643733431691,0.43,2789.9,2788.4,1.01226175]
[1643733431886,3.12336472,2790.6,2789.1,0.01244873]
[1643733432088,7.84326563,2790.9,2789.1,0.02520534]
[1643733432288,0.67097633,2790.1,2789.1,0.02520534]
[1643733432485,0.67097633,2790.1,2789.1,0.02164364]
[1643733432685,0.67097633,2790.1,2789.1,0.01244873]
[1643733433486,0.67097633,2790.1,2789.4,0.33905918]
[1643733433888,0.67097633,2790.1,2789.1,0.01244873]
[1643733434136,0.67097633,2790.1,2788.8,7.8462]
[1643733434137,3.06133703,2790.0,2788.8,7.8462]
[1643733434332,0.43,2789.9,2788.5,1.2029]
[1643733434834,0.85252964,2789.3,2788.5,1.2029]
[1643733435035,0.85252964,2789.3,2788.7,0.37154977]
[1643733435236,1.15252964,2789.3,2788.5,1.2029]
[1643733436438,1.58252964,2789.3,2788.5,1.2029]
[1643733437038,0.73,2789.3,2788.5,1.5029]
[1643733437237,0.43,2789.7,2788.5,1.5029]
[1643733437440,0.4367552,2789.5,2788.5,1.2029]
[1643733437638,2.97474837,2789.4,2788.5,1.2029]
[1643733437879,0.43,2789.4,2788.5,1.2029]
[1643733438079,0.94196073,2788.9,2788.5,1.2029]
[1643733438276,0.94196073,2788.9,2788.2,6.5023]
[1643733438477,0.94196073,2788.9,2788.1,1.52257936]
[1643733438677,0.3,2788.9,2788.1,1.52257936]
[1643733439077,0.43,2789.6,2788.1,4.43023844]
[1643733439287,0.43,2789.6,2788.2,3.05332497]
[1643733439485,0.43,2789.6,2788.2,10.52332497]
[1643733439783,0.75908621,2789.1,2788.3,0.3]
[1643733439988,0.75908621,2789.1,2788.3,0.6883703]
[1643733440183,0.75908621,2789.1,2788.3,0.3883703]
[1643733440585,0.73,2789.6,2788.3,0.3883703]
[1643733440787,1.25,2790.0,2788.4,2.9052553]
[1643733440788,0.43,2790.0,2788.4,2.9052553]
[1643733441086,0.3,2790.1,2788.7,0.02267808]
[1643733441284,0.36048697,2790.5,2788.2,1.1455]
[1643733441285,2.69336472,2790.0,2788.2,1.1455]
[1643733441535,2.69336472,2790.0,2788.0,1.05101483]
[1643733441536,0.43995947,2790.0,2788.0,1.05101483]
[1643733441741,0.43995947,2790.0,2788.3,7.47]
[1643733441942,0.43995947,2790.0,2788.4,0.01229037]
[1643733442342,0.80831943,2789.3,2788.4,0.01229037]
[1643733442744,1.10831943,2789.3,2788.4,0.01229037]
[1643733443143,0.39528342,2789.1,2788.4,0.01229037]
[1643733443541,0.69528342,2789.1,2788.4,0.01229037]
[1643733443743,0.88999441,2788.8,2788.4,0.01229037]
[1643733443945,0.88999441,2788.8,2788.1,1.4849]
[1643733444143,0.88999441,2788.8,2788.1,1.1849]
[1643733444443,1.18999441,2788.8,2788.1,1.1849]
[1643733445688,1.18999441,2788.8,2788.1,1.4849]
[1643733445890,1.18999441,2788.8,2788.1,1.49292121]
[1643733446189,1.18999441,2788.8,2788.1,1.1849]
[1643733446489,0.76294256,2788.2,2788.1,1.1849]
[1643733446691,1.06294256,2788.2,2788.0,1.0487474]
[1643733449736,7.13,2788.1,2786.6,0.89698]
[1643733449937,0.3,2787.5,2786.5,7.4318]
[1643733450208,0.43,2787.4,2786.5,1.1349]
[1643733450339,5.25,2787.3,2786.4,0.45020243]
[1643733450535,5.68,2787.3,2786.2,0.86812]
[1643733450737,0.44756884,2787.0,2786.2,0.86812]
[1643733450936,0.89217079,2787.0,2786.2,0.86812]
[1643733451138,0.89217079,2787.0,2786.2,0.02]
[1643733451341,0.89217079,2787.0,2786.1,0.33140139]
[1643733451342,1.19217079,2787.0,2786.1,0.33140139]
[1643733451536,1.19217079,2787.0,2786.0,0.02]
[1643733451938,1.19217079,2787.0,2785.9,0.03212695]
[1643733451939,0.4341948,2786.9,2785.9,0.03212695]
[1643733452139,24.38695952,2786.9,2785.9,0.02]
[1643733452338,21.08,2786.7,2785.4,0.1794]
[1643733452538,0.38012799,2785.6,2785.0,1.18095497]
[1643733452781,0.43,2785.6,2785.0,1.1786]
[1643733453084,0.73,2785.6,2785.0,1.1786]
[1643733453282,0.73,2785.6,2785.0,0.02]
[1643733453486,0.93930461,2785.5,2784.7,1.9673274]
[1643733453684,0.43,2785.4,2784.7,1.1187474]
[1643733454089,0.73,2785.4,2784.7,1.1187474]
[1643733454287,0.32721614,2785.1,2784.7,1.1187474]
[1643733454488,1.14069808,2785.0,2784.7,1.1187474]
[1643733454690,1.98579808,2785.0,2784.7,1.1187474]
[1643733455089,1.2751,2785.0,2784.7,1.1187474]
[1643733455291,0.8451,2785.0,2784.7,1.1187474]
[1643733455690,0.8451,2785.0,2784.7,1.0987474]
[1643733455691,0.8251,2785.0,2784.7,1.0987474]
[1643733455894,0.3,2785.0,2784.7,1.0987474]
[1643733456095,0.268,2785.1,2784.7,1.0987474]
[1643733456299,0.268,2785.1,2784.7,1.41107496]
[1643733456538,0.1794,2786.3,2785.0,0.01247712]
[1643733456746,0.1794,2786.3,2785.7,0.01282255]
[1643733456747,0.17455229,2786.3,2785.7,0.01282255]
[1643733456943,0.1794,2786.4,2785.7,0.01282255]
[1643733457141,0.39555982,2786.2,2785.7,0.01282255]
[1643733457344,0.67650497,2785.8,2785.7,0.01282255]
[1643733457541,0.1794,2786.1,2785.2,0.01276079]
[1643733458345,0.1794,2786.4,2785.2,0.01276079]
[1643733458543,0.88310079,2786.1,2785.2,0.01276079]
[1643733458743,0.1794,2786.0,2785.2,0.01276079]
[1643733459146,0.49987303,2786.0,2785.2,0.01276079]
[1643733459345,0.1794,2786.0,2785.2,0.01276079]
[1643733460386,0.50741982,2786.0,2785.2,0.01276079]
[1643733460783,0.1794,2786.0,2785.2,0.01276079]
[1643733460987,0.43,2787.2,2785.3,0.9234113]
[1643733461183,0.43,2787.6,2785.9,0.01271136]
[1643733461387,3.20170076,2787.5,2785.9,0.02799305]
[1643733461592,6.7,2787.4,2785.5,6.30009305]
[1643733461787,6.7,2787.4,2785.6,0.40134112]
[1643733461788,0.8590649,2786.3,2785.6,0.40134112]
[1643733462186,0.1794,2786.5,2785.6,0.40134112]
[1643733462387,0.19507494,2787.0,2785.6,0.40134112]
[1643733462586,0.1794,2787.1,2785.6,0.70134112]
[1643733462787,0.1794,2787.1,2785.6,0.40134112]
[1643733462986,3.13094218,2787.3,2785.6,0.40134112]
[1643733463186,0.78027674,2786.7,2785.7,3.31700955]
[1643733463385,0.1794,2786.6,2785.8,1.0]
[1643733463590,0.1794,2786.6,2785.6,0.40134112]
[1643733463591,0.78027674,2786.7,2785.7,3.04802876]
[1643733463787,0.78027674,2786.7,2785.7,3.36010589]
[1643733464033,1.08027674,2786.7,2785.8,1.0]
[1643733464332,1.08027674,2786.7,2785.6,0.3]
[1643733464333,0.67340185,2786.2,2785.6,0.3]
[1643733464733,0.97340185,2786.2,2785.5,0.1794]
[1643733465735,0.3,2786.2,2785.5,0.1794]
[1643733465935,0.1794,2786.6,2785.5,0.1794]
[1643733466136,0.43,2786.9,2785.5,0.1794]
[1643733466137,0.1794,2786.8,2785.5,0.1794]
[1643733466333,0.60877265,2786.8,2785.8,0.33383466]
[1643733466533,0.60877265,2786.8,2785.5,0.1794]
[1643733466738,0.49268986,2786.8,2785.8,0.71905006]
[1643733466938,0.1794,2786.8,2785.9,2.6710738]
[1643733467142,0.1794,2787.0,2785.9,3.11440487]
[1643733467338,0.1794,2787.5,2786.0,1.0]
[1643733467540,0.1794,2787.5,2786.1,2.98867377]
[1643733467775,0.36430861,2787.5,2786.5,0.36492763]
[1643733467975,0.1794,2787.4,2786.3,0.1794]
[1643733469276,0.43,2788.0,2786.2,0.1794]
[1643733469479,0.1794,2787.3,2786.2,0.1794]
[1643733469676,0.1794,2787.8,2786.2,0.1794]
[1643733469879,0.1792,2787.9,2786.2,0.1794]
[1643733470078,0.39972788,2787.7,2786.7,0.35563867]
[1643733470377,0.1792,2787.6,2786.2,0.18382419]
[1643733470577,0.75626636,2787.2,2786.2,1.4794]
[1643733471079,0.1792,2787.6,2786.3,2.91300302]
[1643733471282,0.1794,2788.3,2786.4,2.4231]
[1643733471541,1.51267788,2788.2,2786.4,2.4231]
[1643733471734,0.1792,2788.1,2786.5,3.00495802]
[1643733471933,0.1792,2788.1,2786.6,1.0]
[1643733472132,0.80814739,2787.6,2786.6,1.0]
[1643733472334,0.1792,2787.5,2786.4,1.5437]
[1643733472535,0.1792,2787.5,2786.4,4.50417766]
[1643733472734,0.1792,2787.5,2786.5,1.0]
[1643733473335,0.1792,2787.5,2786.6,2.87952471]
[1643733473539,0.1792,2787.5,2787.0,0.34875091]
[1643733473934,0.1792,2787.5,2786.6,0.01292241]
[1643733474139,0.80814739,2787.6,2786.7,0.1794]
[1643733475479,0.80814739,2787.6,2786.7,0.54414185]
[1643733475879,0.1792,2787.5,2786.7,0.1794]
[1643733477186,0.7848432,2787.1,2786.7,0.1794]
[1643733477485,0.1792,2787.5,2786.7,0.1794]
[1643733477686,0.1792,2787.5,2786.4,1.5437]
[1643733478287,0.67683986,2787.5,2786.8,0.31532136]
[1643733478490,0.67683986,2787.5,2786.4,4.38620579]
[1643733478491,0.1792,2787.4,2786.4,4.38620579]
[1643733478689,0.1792,2787.4,2786.5,1.0]
[1643733478887,0.1792,2787.4,2786.6,2.86564629]
[1643733479130,0.1792,2787.4,2786.6,0.3]
[1643733479334,0.01283963,2788.7,2786.7,4.03580549]
[1643733479335,0.1794,2788.4,2786.7,4.03580549]
[1643733479532,0.1794,2788.4,2786.8,1.6663457]
[1643733479731,0.36894861,2788.5,2787.5,0.44865663]
[1643733479930,3.6792,2789.3,2787.5,0.44865663]
[1643733480130,1.51233404,2789.2,2787.6,1.2067]
[1643733480332,1.51233404,2789.2,2787.6,9.1867]
[1643733480633,1.51233404,2789.2,2787.7,2.6710738]
[1643733480832,3.6792,2789.3,2787.7,2.6710738]
[1643733480833,3.6792,2789.3,2788.0,0.01267332]
[1643733481032,0.33838622,2788.9,2788.0,0.02140978]
[1643733481231,0.33838622,2788.9,2788.0,1.02140978]
[1643733481232,0.66870143,2788.5,2788.0,1.02140978]
[1643733481432,0.66870143,2788.5,2788.0,0.01267332]
[1643733481636,0.66870143,2788.5,2787.9,1.0]
[1643733481838,0.66870143,2788.5,2788.0,0.3]
[1643733482138,0.35109688,2788.2,2787.8,0.3]
[1643733482535,0.3,2788.2,2787.6,2.5067]
[1643733482803,0.66870143,2788.5,2787.6,1.3]
[1643733482804,0.96870143,2788.5,2787.6,1.3]
[1643733483001,0.96870143,2788.5,2787.6,0.3]
[1643733483197,0.83003843,2788.0,2787.3,1.0]
[1643733483399,0.83003843,2788.0,2787.3,1.3]
[1643733483800,0.3,2788.5,2787.2,1.40650026]
[1643733484001,0.3,2788.5,2787.2,4.29687808]
[1643733484199,1.6092,2789.3,2787.2,1.40650026]
[1643733484402,1.51230092,2789.2,2787.2,7.61304628]
[1643733484599,4.68997346,2789.3,2787.2,4.67380026]
[1643733484801,0.77737799,2788.4,2787.2,7.54348953]
[1643733484999,3.17767254,2789.3,2787.2,1.40650026]
[1643733485201,3.18640838,2789.3,2787.3,3.02773262]
[1643733485399,0.9092,2789.3,2787.3,3.32773262]
[1643733485600,0.9092,2789.3,2787.4,1.0]
[1643733485800,0.9092,2789.3,2787.5,3.81885703]
[1643733486000,1.36202908,2788.7,2787.5,5.25145703]
[1643733486199,1.36202908,2788.7,2787.6,1.0]
[1643733486400,0.3,2788.7,2787.7,3.00468502]
[1643733486659,0.1792,2789.3,2787.8,1.0]
[1643733486855,0.1792,2789.3,2787.9,5.77170154]
[1643733487059,0.1792,2789.3,2788.0,2.0047]
[1643733487255,0.1792,2789.3,2788.1,7.08564529]
[1643733487461,0.72319851,2789.0,2788.2,0.13819997]
[1643733487655,0.72319851,2789.0,2788.2,1.31727997]
[1643733487857,0.72319851,2789.0,2788.3,2.911736]
[1643733488056,0.72319851,2789.0,2788.2,1.43819997]
[1643733488258,0.72319851,2789.0,2788.2,0.13819997]
[1643733488658,0.1792,2789.3,2788.3,0.8964]
[1643733488858,0.1792,2789.3,2788.3,1.1964]
[1643733489662,0.33917803,2789.1,2788.3,1.1964]
[1643733489860,0.75884311,2788.8,2788.3,1.1964]
[1643733490062,0.75884311,2788.8,2788.3,0.3]
[1643733490287,0.75884311,2788.8,2788.0,6.2912]
[1643733490288,1.06710843,2788.8,2788.0,6.2912]
[1643733490492,1.06710843,2788.8,2788.0,0.3]
[1643733490892,0.35330159,2788.4,2787.9,1.1326]
[1643733491092,0.70203007,2788.3,2787.5,2.13571023]
[1643733491293,9.604e-05,2788.3,2787.5,2.13571023]
[1643733491493,9.604e-05,2788.3,2787.5,5.74188]
[1643733491692,0.1792,2789.3,2787.5,13.23668]
[1643733491893,0.1792,2789.3,2787.6,4.74792339]
[1643733492093,0.1792,2789.3,2787.7,1.2458]
[1643733492494,0.1792,2789.3,2787.7,2.5458]
[1643733492692,0.84975509,2788.8,2788.2,0.44622196]
[1643733492893,0.35172312,2789.2,2788.2,0.44622196]
[1643733493092,0.3,2789.2,2788.2,0.44622196]
[1643733493494,0.1792,2789.3,2788.2,0.44622196]
[1643733493696,0.4792,2789.3,2788.2,0.44622196]
[1643733493894,0.1792,2789.3,2788.2,0.44352296]
[1643733494128,0.8574647,2789.1,2788.2,0.44352296]
[1643733494328,1.47328789,2789.1,2788.2,0.44352296]
[1643733494531,1.47328789,2789.1,2788.0,0.3]
[1643733495132,1.1574647,2789.1,2788.0,1.19654]
[1643733495331,0.1792,2789.3,2788.0,4.04799375]
[1643733495533,0.1792,2789.3,2788.2,1.79275]
[1643733495831,0.1792,2789.3,2788.3,3.30766888]
[1643733496030,0.1792,2789.3,2788.4,1.84289997]
[1643733496231,0.1792,2789.3,2788.9,0.0099791]
[1643733496636,0.1792,2789.3,2788.8,0.3]
[1643733496839,0.1792,2789.3,2788.7,2.83686271]
[1643733497037,0.1792,2789.3,2788.6,1.0]
[1643733497237,0.1792,2789.3,2788.7,1.79242]
[1643733497805,1.05972209,2789.3,2788.7,3.09242]
[1643733498104,1.05972209,2789.3,2788.7,2.09242]
[1643733498306,0.1792,2789.3,2788.7,2.09242]
[1643733500911,0.1792,2789.3,2788.7,0.3]
[1643733501109,3.05801794,2789.3,2788.7,0.3]
[1643733501317,0.1792,2789.3,2788.6,1.3]
[1643733501751,0.1792,2789.3,2788.2,7.9387]
[1643733501949,0.1792,2789.3,2788.1,1.2286]
[1643733501950,0.43,2789.2,2788.1,1.2286]
[1643733502351,0.73,2789.2,2788.1,1.2286]
[1643733502751,0.43,2789.2,2788.1,1.2286]
[1643733502951,2.6710738,2789.1,2788.1,1.2286]
[1643733503153,0.43,2789.0,2788.1,1.2286]
[1643733503451,0.73,2789.0,2788.1,1.2286]
[1643733504052,0.73529187,2788.5,2788.1,1.2286]
[1643733504252,0.73,2789.0,2787.9,1.0]
[1643733504454,0.73,2789.0,2787.8,0.43502312]
[1643733505393,0.43,2789.0,2787.8,0.73502312]
[1643733505592,0.43,2789.0,2787.8,0.43502312]
[1643733505793,0.43,2789.0,2787.8,0.73502312]
[1643733505994,0.1792,2789.3,2787.8,0.73502312]
[1643733506194,0.1792,2789.3,2787.8,0.74146767]
[1643733506394,1.51199151,2789.2,2788.5,0.31807925]
[1643733506596,0.1792,2789.3,2788.5,0.31807925]
[1643733506999,0.1792,2789.3,2788.1,1.2442]
[1643733507397,0.1792,2789.3,2788.1,2.2442]
[1643733507398,1.51200955,2789.2,2788.1,2.2442]
[1643733507598,0.1792,2789.3,2788.3,0.89653]
[1643733507803,0.71379344,2789.1,2788.3,1.19653]
[1643733509336,0.1792,2789.3,2788.3,1.56131316]
[1643733510335,0.1792,2789.3,2788.9,0.41678295]
[1643733510940,6.322554,2789.9,2789.0,6.65]
[1643733511240,6.322554,2789.9,2789.2,21.08]
[1643733511435,5.455254,2789.9,2789.3,3.24297736]
[1643733511638,0.89343915,2791.1,2789.5,21.08]
[1643733511639,0.66932445,2791.1,2789.5,21.08]
[1643733511840,0.85369074,2791.0,2789.7,1.72684605]
[1643733512040,0.35654081,2791.5,2790.1,0.89597]
[1643733512041,1.51128457,2790.9,2790.1,0.89597]
[1643733512241,1.30944384,2791.7,2790.2,3.14103623]
[1643733512242,1.51128457,2790.8,2790.2,3.14103623]
[1643733512441,1.30944384,2791.9,2790.0,3.61143344]
[1643733512442,0.90343915,2791.9,2790.0,3.61143344]
[1643733512645,1.51094292,2791.8,2790.0,4.94882439]
[1643733512904,0.02287284,2792.2,2790.0,4.94882439]
[1643733512905,1.51094292,2791.7,2790.1,1.0]
[1643733513100,0.90343915,2792.1,2790.1,1.0]
[1643733513101,1.51094292,2791.6,2790.8,0.32171795]
[1643733513302,1.51094292,2791.6,2790.5,0.83358006]
[1643733513303,7.11094292,2791.5,2790.7,0.43262483]
[1643733513500,1.51094292,2791.4,2790.7,0.43262483]
[1643733513699,1.51094292,2791.3,2790.7,0.43262483]
[1643733513901,0.94524897,2791.8,2790.7,0.43262483]
[1643733513902,1.51094292,2791.2,2790.7,0.43262483]
[1643733514103,0.01,2792.0,2790.7,1.43262483]
[1643733514302,1.51089277,2791.9,2790.8,2.81250315]
[1643733514505,1.51089277,2791.8,2791.3,0.39188043]
[1643733514904,1.51089277,2791.7,2791.3,1.28740043]
[1643733515107,1.51089277,2791.6,2791.3,2.0288118]
[1643733515310,0.01,2792.1,2791.3,2.3288118]
[1643733515508,1.51071611,2792.0,2791.4,2.84746061]
[1643733515707,1.51071611,2792.0,2791.3,2.3288118]
[1643733515708,1.51071611,2791.9,2791.3,2.3288118]
[1643733515907,1.52071611,2791.9,2791.5,1.0]
[1643733516107,1.51071611,2791.8,2791.6,0.3]
[1643733516308,1.51071611,2791.8,2791.4,1.0]
[1643733516557,0.68557982,2792.6,2791.3,2.58740043]
[1643733516558,0.02,2792.3,2791.3,2.58740043]
[1643733516748,0.68557982,2792.6,2791.3,2.58740043]
[1643733516749,1.51066409,2792.2,2791.4,2.82675331]
[1643733516947,1.51066409,2792.1,2791.8,0.3376252]
[1643733517147,1.51066409,2792.1,2791.8,1.2330052]
[1643733517148,1.52066409,2792.1,2791.8,1.2330052]
[1643733517347,1.51066409,2792.0,2791.8,1.2330052]
[1643733517549,1.52066409,2792.0,2791.8,1.5330052]
[1643733517748,0.01,2792.0,2791.8,1.5330052]
[1643733517948,0.32940006,2792.9,2791.8,1.53826577]
[1643733517949,0.33940006,2792.9,2791.8,1.53826577]
[1643733518153,1.51056169,2792.8,2791.8,1.53826577]
[1643733518349,0.01,2792.7,2791.8,1.19538]
[1643733518550,0.01,2792.7,2791.8,2.19538]
[1643733518551,1.52056169,2792.6,2791.8,2.19538]
[1643733518752,1.52056169,2792.5,2791.8,2.19538]
[1643733518950,1.53056169,2792.4,2791.8,2.19538]
[1643733519151,1.52056169,2792.3,2791.8,2.19538]
[1643733519351,1.51056169,2792.2,2791.8,2.19538]
[1643733519652,1.73563582,2792.2,2791.0,2.04107]
[1643733519853,1.73563582,2792.2,2791.0,1.79107]